Workbook

Sheet QUOTAS DES LIV
A1: PSEUDO | B1: Khonsou | C1: tharsilla | D1: chachadu44 | E1: chepa | F1: wakash | G1: vipere92 | H1: boody | I1: trezepac | J1: tweick | K1: dolfijn | L1: kiwi445 | M1: terminator3 | N1: aym35 | O1: ygrek | P1: havok1 | Q1: maromi | R1: orev | S1: calicelame | T1: kirle | U1: shuo | V1: micktram | W1: darkspread | X1: hbing | Y1: ithaque | Z1: frite | AA1: blackeagle | AB1: ashday | AC1: majokajupo | AD1: houdihadu59 | AE1: filou690 | AF1: yodaDM | AG1: lokiii | AH1: oglala | AI1: lesinc | AJ1: gropere | AK1: doudou59 | AL1: banania | AM1: bastien14 | AN1: darksnake | AO1: eliote | AP1: nonobcd82 | AQ1: pierrhout | AR1: wizz59780 | AS1: misaxsan | AT1: anthony2306 | AU1: whiteforest | AV1: elladan | AW1: TOTAL | AX1: verif
A2: tdp | B2: =VLOOKUP(B1,TDP!$A:$B,2,FALSE) -> 0.0051 | C2: =VLOOKUP(C1,TDP!$A:$B,2,FALSE) -> 0.0051 | D2: =VLOOKUP(D1,TDP!A:B,2,FALSE) -> 0.0086 | E2: =VLOOKUP(E1,TDP!$A:$B,2,FALSE) -> 0.006 | F2: =VLOOKUP(F1,TDP!$A:$B,2,FALSE) -> 0.0077 | G2: =VLOOKUP(G1,TDP!$A:$B,2,FALSE) -> 0.007 | H2: =VLOOKUP(H1,TDP!$A:$B,2,FALSE) -> 0.004 | I2: =VLOOKUP(I1,TDP!$A:$B,2,FALSE) -> 0.0038 | J2: =VLOOKUP(J1,TDP!$A:$B,2,FALSE) -> 0.0051 | K2: =VLOOKUP(K1,TDP!$A:$B,2,FALSE) -> 0.007 | L2: =VLOOKUP(L1,TDP!$A:$B,2,FALSE) -> 0.0106 | M2: =VLOOKUP(M1,TDP!$A:$B,2,FALSE) -> 0.0106 | N2: =VLOOKUP(N1,TDP!$A:$B,2,FALSE) -> 0.0146 | O2: =VLOOKUP(O1,TDP!$A:$B,2,FALSE) -> 0.0077 | P2: =VLOOKUP(P1,TDP!$A:$B,2,FALSE) -> 0.0086 | Q2: =VLOOKUP(Q1,TDP!$A:$B,2,FALSE) -> 0.0118 | R2: =VLOOKUP(R1,TDP!$A:$B,2,FALSE) -> 0.0118 | S2: =VLOOKUP(S1,TDP!$A:$B,2,FALSE) -> 0.0021 | T2: =VLOOKUP(T1,TDP!$A:$B,2,FALSE) -> 0.0118 | U2: =VLOOKUP(U1,TDP!$A:$B,2,FALSE) -> 0.0146 | V2: =VLOOKUP(V1,TDP!$A:$B,2,FALSE) -> 0.0021 | W2: =VLOOKUP(W1,TDP!$A:$B,2,FALSE) -> 0.0106 | X2: =VLOOKUP(X1,TDP!$A:$B,2,FALSE) -> 0.02 | Y2: =VLOOKUP(Y1,TDP!$A:$B,2,FALSE) -> 0.0162 | Z2: =VLOOKUP(Z1,TDP!$A:$B,2,FALSE) -> 0.0305 | AA2: =VLOOKUP(AA1,TDP!$A:$B,2,FALSE) -> 0.0146 | AB2: =VLOOKUP(AB1,TDP!$A:$B,2,FALSE) -> 0.0247 | AC2: =VLOOKUP(AC1,TDP!$A:$B,2,FALSE) -> 0.0106 | AD2: =VLOOKUP(AD1,TDP!$A:$B,2,FALSE) -> 0.005 | AE2: =VLOOKUP(AE1,TDP!$A:$B,2,FALSE) -> 0.02 | AF2: =VLOOKUP(AF1,TDP!$A:$B,2,FALSE) -> 0.0096 | AG2: =VLOOKUP(AG1,TDP!$A:$B,2,FALSE) -> 0.0274 | AH2: =VLOOKUP(AH1,TDP!$A:$B,2,FALSE) -> 0.0131 | AI2: =VLOOKUP(AI1,TDP!$A:$B,2,FALSE) -> 0.0086 | AJ2: =VLOOKUP(AJ1,TDP!$A:$B,2,FALSE) -> 0.005 | AK2: =VLOOKUP(AK1,TDP!$A:$B,2,FALSE) -> 0.0162 | AL2: =VLOOKUP(AL1,TDP!$A:$B,2,FALSE) -> 0.0222 | AM2: =VLOOKUP(AM1,TDP!$A:$B,2,FALSE) -> 0.01 | AN2: =VLOOKUP(AN1,TDP!$A:$B,2,FALSE) -> 0.0274 | AO2: =VLOOKUP(AO1,TDP!$A:$B,2,FALSE) -> 0.0222 | AP2: =VLOOKUP(AP1,TDP!$A:$B,2,FALSE) -> 0.0247 | AQ2: =VLOOKUP(AQ1,TDP!$A:$B,2,FALSE) -> 0.0274 | AR2: =VLOOKUP(AR1,TDP!$A:$B,2,FALSE) -> 0.0247 | AS2: =VLOOKUP(AS1,TDP!$A:$B,2,FALSE) -> 0.0464 | AT2: =VLOOKUP(AT1,TDP!$A:$B,2,FALSE) -> 0.01 | AU2: =VLOOKUP(AU1,TDP!$A:$B,2,FALSE) -> 0.0247 | AV2: =VLOOKUP(AV1,TDP!$A:$B,2,FALSE) -> 0.01 | AW2: =SUM(B2:AV2) -> 0.6475
A3: 1/tdp | B3: =1/B2 -> 196.0784314 | C3: =1/C2 -> 196.0784314 | D3: =1/D2 -> 116.2790698 | E3: 166.6666667 | F3: =1/F2 -> 129.8701299 | G3: =1/G2 -> 142.8571429 | H3: =1/H2 -> 250 | I3: 263.1578947 | J3: 196.0784314 | K3: 142.8571429 | L3: 94.33962264 | M3: 94.33962264 | N3: 68.49315068 | O3: 129.8701299 | P3: 116.2790698 | Q3: 84.74576271 | R3: 84.74576271 | S3: 476.1904762 | T3: 84.74576271 | U3: 68.49315068 | V3: 476.1904762 | W3: 94.33962264 | X3: 50 | Y3: 61.72839506 | Z3: 32.78688525 | AA3: 68.49315068 | AB3: 40.48582996 | AC3: 94.33962264 | AD3: 200 | AE3: 50 | AF3: 104.1666667 | AG3: 36.49635036 | AH3: 76.33587786 | AI3: 116.2790698 | AJ3: 200 | AK3: 61.72839506 | AL3: 45.04504505 | AM3: 100 | AN3: 36.49635036 | AO3: 45.04504505 | AP3: 40.48582996 | AQ3: 36.49635036 | AR3: 40.48582996 | AS3: 21.55172414 | AT3: 100 | AU3: 40.48582996 | AV3: 100 | AW3: =SUM(B3:AV3) -> 5471.628198
A4: %/tdc ally | B4: =(B3*$AW$4)/$AW$3 -> 3.583548155 | C4: 3.583548155 | D4: 2.125127394 | E4: 3.046015932 | F4: 2.373518908 | G4: 2.610870799 | H4: 4.569023898 | I4: 4.80949884 | J4: 3.583548155 | K4: 2.610870799 | L4: 1.724159962 | M4: 1.724159962 | N4: 1.251787369 | O4: 2.373518908 | P4: 2.125127394 | Q4: 1.54882166 | R4: 1.54882166 | S4: 8.702902663 | T4: 1.54882166 | U4: 1.251787369 | V4: 8.702902663 | W4: 1.724159962 | X4: 0.9138047796 | Y4: 1.128154049 | Z4: 0.5992162489 | AA4: 1.251787369 | AB4: 0.7399228985 | AC4: 1.724159962 | AD4: 3.655219118 | AE4: 0.9138047796 | AF4: 1.903759958 | AG4: 0.667010788 | AH4: 1.395121801 | AI4: 2.125127394 | AJ4: 3.655219118 | AK4: 1.128154049 | AL4: 0.8232475492 | AM4: 1.827609559 | AN4: 0.667010788 | AO4: 0.8232475492 | AP4: 0.7399228985 | AQ4: 0.667010788 | AR4: 0.7399228985 | AS4: 0.3938813705 | AT4: 1.827609559 | AU4: =(AU3*$AW$4)/$AW$3 -> 0.7399228985 | AV4: =(AV3*$AW$4)/$AW$3 -> 1.827609559 | AW4: 100 | AX4: =SUM(B4:AV4) -> 100
A5: tdc moyen | B5: =VLOOKUP(B1,'Matrice encodage'!$A:$I,9,FALSE) -> 2305002347 | C5: =VLOOKUP(C1,'Matrice encodage'!$A:$I,9,FALSE) -> 2123998443 | D5: =VLOOKUP(D1,'Matrice encodage'!$A:$I,9,FALSE) -> 1535136287 | E5: =VLOOKUP(E1,'Matrice encodage'!$A:$I,9,FALSE) -> 1461977360 | F5: =VLOOKUP(F1,'Matrice encodage'!$A:$I,9,FALSE) -> 8711238.857 | G5: =VLOOKUP(G1,'Matrice encodage'!$A:$I,9,FALSE) -> 27758206.43 | H5: =VLOOKUP(H1,'Matrice encodage'!$A:$I,9,FALSE) -> 6419922.857 | I5: =VLOOKUP(I1,'Matrice encodage'!$A:$I,9,FALSE) -> 424784.8571 | J5: =VLOOKUP(J1,'Matrice encodage'!$A:$I,9,FALSE) -> 2541484.143 | K5: =VLOOKUP(K1,'Matrice encodage'!$A:$I,9,FALSE) -> 1060036.857 | L5: =VLOOKUP(L1,'Matrice encodage'!$A:$I,9,FALSE) -> 589206286.1 | M5: =VLOOKUP(M1,'Matrice encodage'!$A:$I,9,FALSE) -> 326341257.9 | N5: =VLOOKUP(N1,'Matrice encodage'!$A:$I,9,FALSE) -> 139741694.3 | O5: =VLOOKUP(O1,'Matrice encodage'!$A:$I,9,FALSE) -> 76391262.43 | P5: =VLOOKUP(P1,'Matrice encodage'!$A:$I,9,FALSE) -> 31785944.43 | Q5: =VLOOKUP(Q1,'Matrice encodage'!$A:$I,9,FALSE) -> 45452917 | R5: =VLOOKUP(R1,'Matrice encodage'!$A:$I,9,FALSE) -> 25883043.29 | S5: =VLOOKUP(S1,'Matrice encodage'!$A:$I,9,FALSE) -> 29328806.29 | T5: =VLOOKUP(T1,'Matrice encodage'!$A:$I,9,FALSE) -> 42042379.14 | U5: =VLOOKUP(U1,'Matrice encodage'!$A:$I,9,FALSE) -> 22661690.43 | V5: =VLOOKUP(V1,'Matrice encodage'!$A:$I,9,FALSE) -> 15462249.71 | W5: =VLOOKUP(W1,'Matrice encodage'!$A:$I,9,FALSE) -> 16135993.14 | X5: =VLOOKUP(X1,'Matrice encodage'!$A:$I,9,FALSE) -> 40136826.14 | Y5: =VLOOKUP(Y1,'Matrice encodage'!$A:$I,9,FALSE) -> 13512705.71 | Z5: =VLOOKUP(Z1,'Matrice encodage'!$A:$I,9,FALSE) -> 11487885 | AA5: =VLOOKUP(AA1,'Matrice encodage'!$A:$I,9,FALSE) -> 4846558.429 | AB5: =VLOOKUP(AB1,'Matrice encodage'!$A:$I,9,FALSE) -> 12897937.57 | AC5: =VLOOKUP(AC1,'Matrice encodage'!$A:$I,9,FALSE) -> 4775570.857 | AD5: =VLOOKUP(AD1,'Matrice encodage'!$A:$I,9,FALSE) -> 5871042.143 | AE5: =VLOOKUP(AE1,'Matrice encodage'!$A:$I,9,FALSE) -> 15196573 | AF5: =VLOOKUP(AF1,'Matrice encodage'!$A:$I,9,FALSE) -> 2707391 | AG5: =VLOOKUP(AG1,'Matrice encodage'!$A:$I,9,FALSE) -> 5000948.143 | AH5: =VLOOKUP(AH1,'Matrice encodage'!$A:$I,9,FALSE) -> 5336541.429 | AI5: =VLOOKUP(AI1,'Matrice encodage'!$A:$I,9,FALSE) -> 2309444 | AJ5: =VLOOKUP(AJ1,'Matrice encodage'!$A:$I,9,FALSE) -> 3121704.571 | AK5: =VLOOKUP(AK1,'Matrice encodage'!$A:$I,9,FALSE) -> 1591001.714 | AL5: =VLOOKUP(AL1,'Matrice encodage'!$A:$I,9,FALSE) -> 1892724 | AM5: =VLOOKUP(AM1,'Matrice encodage'!$A:$I,9,FALSE) -> 1245149 | AN5: =VLOOKUP(AN1,'Matrice encodage'!$A:$I,9,FALSE) -> 1127219 | AO5: =VLOOKUP(AO1,'Matrice encodage'!$A:$I,9,FALSE) -> 743349.2857 | AP5: =VLOOKUP(AP1,'Matrice encodage'!$A:$I,9,FALSE) -> 683296 | AQ5: =VLOOKUP(AQ1,'Matrice encodage'!$A:$I,9,FALSE) -> 620935 | AR5: =VLOOKUP(AR1,'Matrice encodage'!$A:$I,9,FALSE) -> 415182 | AS5: =VLOOKUP(AS1,'Matrice encodage'!$A:$I,9,FALSE) -> 367568 | AT5: =VLOOKUP(AT1,'Matrice encodage'!$A:$I,9,FALSE) -> 304172 | AU5: =VLOOKUP(AU1,'Matrice encodage'!$A:$I,9,FALSE) -> 268468 | AV5: =VLOOKUP(AV1,'Matrice encodage'!$A:$I,9,FALSE) -> 211067 | AW5: =SUM(B5:AV5) -> 8970134895
A6: ressources optenues | B6: =B5*48*6 -> 6.63840676e+11 | C6: =C5*48*6 -> 611711551584 | D6: 442119250656 | E6: 4.210494797e+11 | F6: =F5*48*6 -> 2508836791 | G6: =G5*48*6 -> 7994363451 | H6: =H5*48*6 -> 1848937783 | I6: 122338038.9 | J6: 731947433.1 | K6: 305290614.9 | L6: 1.696914104e+11 | M6: 9.398628226e+10 | N6: 4.024560795e+10 | O6: 2.200068358e+10 | P6: 9154351995 | Q6: 13090440096 | R6: 7454316466 | S6: 8446696210 | T6: 1.210820519e+10 | U6: 6526566843 | V6: 4453127918 | W6: 4647166025 | X6: 1.155940593e+10 | Y6: 3891659246 | Z6: 3308510880 | AA6: 1395808827 | AB6: 3714606021 | AC6: 1375364407 | AD6: 1690860137 | AE6: 4376613024 | AF6: 779728608 | AG6: 1440273065 | AH6: 1536923931 | AI6: 665119872 | AJ6: 899050916.6 | AK6: 458208493.7 | AL6: 545104512 | AM6: 358602912 | AN6: 324639072 | AO6: 214084594.3 | AP6: 196789248 | AQ6: 178829280 | AR6: 119572416 | AS6: 105859584 | AT6: 87601536 | AU6: 77318784 | AV6: 60787296 | AW6: =AW5*48*6 -> 2.58339885e+12
A7: ressources avec % | B7: =($AW$6*B4)/100 -> 9.257734182e+10 | C7: =($AW$6*C4)/100 -> 9.257734182e+10 | D7: 5.490051666e+10 | E7: 7.869074055e+10 | F7: 6.131746017e+10 | G7: 6.744920618e+10 | H7: 1.180361108e+11 | I7: 1.242485377e+11 | J7: 9.257734182e+10 | K7: 6.744920618e+10 | L7: 4.454192861e+10 | M7: 4.454192861e+10 | N7: 3.23386605e+10 | O7: 6.131746017e+10 | P7: 5.490051666e+10 | Q7: 4.001224096e+10 | R7: 4.001224096e+10 | S7: 2.248306873e+11 | T7: 4.001224096e+10 | U7: 3.23386605e+10 | V7: 2.248306873e+11 | W7: 4.454192861e+10 | X7: 2.360722216e+10 | Y7: 2.914471872e+10 | Z7: 1.548014568e+10 | AA7: 3.23386605e+10 | AB7: 1.911515965e+10 | AC7: 4.454192861e+10 | AD7: 9.442888866e+10 | AE7: 2.360722216e+10 | AF7: 4.918171284e+10 | AG7: 1.723154903e+10 | AH7: 3.604156056e+10 | AI7: 5.490051666e+10 | AJ7: 9.442888866e+10 | AK7: 2.914471872e+10 | AL7: 2.126776772e+10 | AM7: 4.721444433e+10 | AN7: 1.723154903e+10 | AO7: 2.126776772e+10 | AP7: 1.911515965e+10 | AQ7: 1.723154903e+10 | AR7: 1.911515965e+10 | AS7: 1.017552679e+10 | AT7: 4.721444433e+10 | AU7: 1.911515965e+10 | AV7: =($AW$6*AV4)/100 -> 4.721444433e+10 | AW7: =SUM(B7:AV7) -> 2.58339885e+12
A8: colo 36 ou 38% perte | B8: =(B6*36)/100 -> 2.389826434e+11 | C8: =(C6*38)/100 -> 2.324503896e+11 | D8: 1.680053152e+11 | E8: 1.599988023e+11 | F8: 953357980.5 | G8: 3037858112 | H8: 702596357.5 | I8: 46488454.77 | J8: 278140024.6 | K8: =(K6*36)/100 -> 109904621.3 | AX8: =SUM(B8:AV8) -> 8.045654961e+11
A9: colo gain | B9: =F8 -> 953357980.5 | C9: =G8 -> 3037858112 | D9: =J8 -> 278140024.6 | E9: =H8 -> 702596357.5 | F9: =B8 -> 2.389826434e+11 | G9: =C8 -> 2.324503896e+11 | H9: =E8 -> 1.599988023e+11 | I9: =K8 -> 109904621.3 | J9: =D8 -> 1.680053152e+11 | K9: =I8 -> 46488454.77 | AX9: =SUM(B9:AV9) -> 8.045654961e+11
A10: doit livrer | B10: =(B6+B9)-(B7+B8) -> 3.332340488e+11 | C10: =(C6+C9)-(C7+C8) -> 2.897216783e+11 | D10: 2.194915588e+11 | E10: 1.830625332e+11 | F10: 1.79220662e+11 | G10: 1.699576888e+11 | H10: 4.31090329e+10 | J10: =(J6+J9)-(J7+J8) -> 7.588178084e+10 | L10: =(L6+L9)-(L7+L8) -> 1.251494818e+11 | M10: =(M6+M9)-(M7+M8) -> 4.944435365e+10 | N10: 7906947455 | AW10: =SUM(B10:AV10) -> 1.676179766e+12 | AX10: =AW10+AX8 -> 2.480745263e+12
A11: doit recevoir | I11: =(I6+I9)-(I7+I8) -> -1.240627835e+11 | K11: -6.720733174e+10 | O11: -3.931677659e+10 | P11: -4.574616467e+10 | Q11: -2.692180086e+10 | R11: -3.255792449e+10 | S11: -2.163839911e+11 | T11: -2.790403576e+10 | U11: -2.581209366e+10 | V11: -2.203775594e+11 | W11: -3.989476259e+10 | X11: -1.204781624e+10 | Y11: -2.525305948e+10 | Z11: -1.21716348e+10 | AA11: -3.094285167e+10 | AB11: -1.540055363e+10 | AC11: -4.316656421e+10 | AD11: -9.273802852e+10 | AE11: -1.923060914e+10 | AF11: -4.840198423e+10 | AG11: -1.579127596e+10 | AH11: -3.450463662e+10 | AI11: -5.423539679e+10 | AJ11: -9.352983774e+10 | AK11: -2.868651023e+10 | AL11: -2.07226632e+10 | AM11: -4.685584142e+10 | AN11: -1.690690995e+10 | AO11: -2.105368312e+10 | AP11: -1.89183704e+10 | AQ11: -1.705271975e+10 | AR11: -1.899558723e+10 | AS11: -1.006966721e+10 | AT11: -4.712684279e+10 | AU11: -1.903784086e+10 | AV11: -4.715365703e+10 | AW11: =SUM(B11:AV11) -> -1.676179766e+12 | AX11: =AW11-AX9 -> -2.480745263e+12

Sheet qui livre qui
B1: tharsilla | C1: chepa | D1: khonsou | E1: chachadu44 | F1: kiwi445 | G1: tweick | H1: wakash | I1: vipere92 | J1: boody | K1: terminator3 | M1: quotas
A2: trezepac | E2: 123.7 | L2: =SUM(B2:K2) -> 123.7 | M2: =HLOOKUP(A2,'QUOTAS DES LIV'!$A:$AV,11,FALSE)/1000000000 -> -124.0627835
A3: dolfijn | H3: 67.1 | L3: 67.1 | M3: =HLOOKUP(A3,'QUOTAS DES LIV'!$A:$AV,11,FALSE)/1000000000 -> -67.20733174
A4: Aym35 | F4: 2.001 | L4: 2.001 | M4: =HLOOKUP(A4,'QUOTAS DES LIV'!$A:$AV,11,FALSE)/1000000000 -> 0
A5: Ygrek | F5: 38.4 | L5: 38.4 | M5: =HLOOKUP(A5,'QUOTAS DES LIV'!$A:$AV,11,FALSE)/1000000000 -> -39.31677659
A6: havok1 | B6: * | I6: 44.1 | L6: 44.1 | M6: =HLOOKUP(A6,'QUOTAS DES LIV'!$A:$AV,11,FALSE)/1000000000 -> -45.74616467
A7: maromi | H7: 29.3 | L7: 29.3 | M7: =HLOOKUP(A7,'QUOTAS DES LIV'!$A:$AV,11,FALSE)/1000000000 -> -26.92180086
A8: orev | J8: 30.6 | L8: 30.6 | M8: =HLOOKUP(A8,'QUOTAS DES LIV'!$A:$AV,11,FALSE)/1000000000 -> -32.55792449
A9: kirle | H9: 32 | L9: 32 | M9: =HLOOKUP(A9,'QUOTAS DES LIV'!$A:$AV,11,FALSE)/1000000000 -> -27.90403576
A10: shuo | D10: 25.9 | G10: * | L10: 25.9 | M10: =HLOOKUP(A10,'QUOTAS DES LIV'!$A:$AV,11,FALSE)/1000000000 -> -25.81209366
A11: micktram | D11: 188.8 | G11: 31 | L11: 219.8 | M11: =HLOOKUP(A11,'QUOTAS DES LIV'!$A:$AV,11,FALSE)/1000000000 -> -220.3775594
A12: darkspread | F12: =34.7-26.9 -> 7.8 | K12: 26.9 | L12: =SUM(B12:K12) -> 34.7 | M12: =HLOOKUP(A12,'QUOTAS DES LIV'!$A:$AV,11,FALSE)/1000000000 -> -39.89476259
A13: hbing | E13: 17.9 | G13: * | L13: 17.9 | M13: =HLOOKUP(A13,'QUOTAS DES LIV'!$A:$AV,11,FALSE)/1000000000 -> -12.04781624
A14: ithaque | B14: * | I14: 25.5 | L14: 25.5 | M14: =HLOOKUP(A14,'QUOTAS DES LIV'!$A:$AV,11,FALSE)/1000000000 -> -25.25305948
A15: frite | B15: * | I15: 11.9 | L15: 11.9 | M15: =HLOOKUP(A15,'QUOTAS DES LIV'!$A:$AV,11,FALSE)/1000000000 -> -12.1716348
A16: blackeagle | E16: 30.4 | L16: 30.4 | M16: =HLOOKUP(A16,'QUOTAS DES LIV'!$A:$AV,11,FALSE)/1000000000 -> -30.94285167
A17: ashday | D17: 17.4 | L17: 17.4 | M17: =HLOOKUP(A17,'QUOTAS DES LIV'!$A:$AV,11,FALSE)/1000000000 -> -15.40055363
A18: majokajupo | I18: 42.9 | J18: * | L18: 42.9 | M18: =HLOOKUP(A18,'QUOTAS DES LIV'!$A:$AV,11,FALSE)/1000000000 -> -43.16656421
A19: houdihadu59 | B19: 68 | I19: 23.8 | L19: 91.8 | M19: =HLOOKUP(A19,'QUOTAS DES LIV'!$A:$AV,11,FALSE)/1000000000 -> -92.73802852
A20: YodaDM | C20: 48.3 | H20: * | L20: 48.3 | M20: =HLOOKUP(A20,'QUOTAS DES LIV'!$A:$AV,11,FALSE)/1000000000 -> -48.40198423
A21: filou690 | E21: 21.6 | L21: 21.6 | M21: =HLOOKUP(A21,'QUOTAS DES LIV'!$A:$AV,11,FALSE)/1000000000 -> -19.23060914
A22: lokiii | B22: 15.4 | D22: * | L22: 15.4 | M22: =HLOOKUP(A22,'QUOTAS DES LIV'!$A:$AV,11,FALSE)/1000000000 -> -15.79127596
A23: oglala | B23: 35 | L23: 35 | M23: =HLOOKUP(A23,'QUOTAS DES LIV'!$A:$AV,11,FALSE)/1000000000 -> -34.50463662
A24: lesinc | C24: =54.1-26 -> 28.1 | D24: * | H24: 26 | L24: 54.1 | M24: =HLOOKUP(A24,'QUOTAS DES LIV'!$A:$AV,11,FALSE)/1000000000 -> -54.23539679
A25: gropere | D25: 24.8 | F25: 68.5 | L25: 93.3 | M25: =HLOOKUP(A25,'QUOTAS DES LIV'!$A:$AV,11,FALSE)/1000000000 -> -93.52983774
A26: doudou59 | G26: 28.3 | L26: 28.3 | M26: =HLOOKUP(A26,'QUOTAS DES LIV'!$A:$AV,11,FALSE)/1000000000 -> -28.68651023
A27: Darksnake | D27: 8.3 | E27: 8.6 | G27: * | L27: 16.9 | M27: =HLOOKUP(A27,'QUOTAS DES LIV'!$A:$AV,11,FALSE)/1000000000 -> -16.90690995
A28: calicelame | B28: 100 | C28: 100 | D28: 15.4 | L28: 215.4 | M28: =HLOOKUP(A28,'QUOTAS DES LIV'!$A:$AV,11,FALSE)/1000000000 -> -216.3839911
A29: pierrhout | C29: 9.3 | D29: 7.7 | L29: 17 | M29: =HLOOKUP(A29,'QUOTAS DES LIV'!$A:$AV,11,FALSE)/1000000000 -> -17.05271975
A30: wizz59780 | F30: 19 | L30: 19 | M30: =HLOOKUP(A30,'QUOTAS DES LIV'!$A:$AV,11,FALSE)/1000000000 -> -18.99558723
A31: bastien14 | B31: 46.6 | G31: * | L31: 46.6 | M31: =HLOOKUP(A31,'QUOTAS DES LIV'!$A:$AV,11,FALSE)/1000000000 -> -46.85584142
A32: misaxsan | L32: 0 | M32: =HLOOKUP(A32,'QUOTAS DES LIV'!$A:$AV,11,FALSE)/1000000000 -> -10.06966721
A33: banania | B33: * | I33: * | J33: * | L33: 0 | M33: =HLOOKUP(A33,'QUOTAS DES LIV'!$A:$AV,11,FALSE)/1000000000 -> -20.7226632
A34: nonobcd82 | B34: * | I34: * | J34: * | L34: 0 | M34: =HLOOKUP(A34,'QUOTAS DES LIV'!$A:$AV,11,FALSE)/1000000000 -> -18.9183704
A35: eliote | B35: * | I35: * | J35: * | L35: 0 | M35: =HLOOKUP(A35,'QUOTAS DES LIV'!$A:$AV,11,FALSE)/1000000000 -> -21.05368312
A36: anthony2306 | E36: * | L36: 0 | M36: =HLOOKUP(A36,'QUOTAS DES LIV'!$A:$AV,11,FALSE)/1000000000 -> -47.12684279
A37: whiteforest | E37: * | L37: 0 | M37: =HLOOKUP(A37,'QUOTAS DES LIV'!$A:$AV,11,FALSE)/1000000000 -> -19.03784086
A38: elladan | L38: 0 | M38: =HLOOKUP(A38,'QUOTAS DES LIV'!$A:$AV,11,FALSE)/1000000000 -> -47.15365703
A39: a livrer report | B39: =HLOOKUP(B1,'QUOTAS DES LIV'!$A:$AV,10,FALSE)/1000000000 -> 289.7216783 | C39: =HLOOKUP(C1,'QUOTAS DES LIV'!$A:$AV,10,FALSE)/1000000000 -> 183.0625332 | D39: =HLOOKUP(D1,'QUOTAS DES LIV'!$A:$AV,10,FALSE)/1000000000 -> 333.2340488 | E39: =HLOOKUP(E1,'QUOTAS DES LIV'!$A:$AV,10,FALSE)/1000000000 -> 219.4915588 | F39: =HLOOKUP(F1,'QUOTAS DES LIV'!$A:$AV,10,FALSE)/1000000000 -> 125.1494818 | G39: =HLOOKUP(G1,'QUOTAS DES LIV'!$A:$AV,10,FALSE)/1000000000 -> 75.88178084 | H39: =HLOOKUP(H1,'QUOTAS DES LIV'!$A:$AV,10,FALSE)/1000000000 -> 179.220662 | I39: =HLOOKUP(I1,'QUOTAS DES LIV'!$A:$AV,10,FALSE)/1000000000 -> 169.9576888 | J39: =HLOOKUP(J1,'QUOTAS DES LIV'!$A:$AV,10,FALSE)/1000000000 -> 43.1090329 | K39: =HLOOKUP(K1,'QUOTAS DES LIV'!$A:$AV,10,FALSE)/1000000000 -> 49.44435365 | L39: =SUM(B39:K39) -> 1668.272819 | M39: =SUM(M2:M38) -> -1676.179766
A40: prorata des inactifs | B40: =SUM($M$32:$M$38)/11 -> -16.73479315 | C40: -16.73479315 | D40: -16.73479315 | E40: -16.73479315 | F40: -16.73479315 | G40: -16.73479315 | H40: -16.73479315 | I40: -16.73479315 | J40: -16.73479315 | K40: -16.73479315 | M40: =SUM(M32:M38) -> -184.0827246
A41: reste à livrer | B41: =B39+B40 -> 272.9868851 | C41: =C39+C40 -> 166.3277401 | D41: 316.4992557 | E41: 202.7567656 | F41: 108.4146886 | G41: 59.14698769 | H41: 162.4858689 | I41: 153.2228956 | J41: 26.37423975 | K41: =K39+K40 -> 32.7095605 | M41: =SUM(B41:K41) -> 1500.924888
A44: verif | B44: =SUM(B2:B38) -> 265 | C44: 185.7 | D44: 288.3 | E44: 202.2 | F44: 135.701 | G44: 59.3 | H44: 154.4 | I44: 148.2 | J44: 30.6 | K44: =SUM(K2:K38) -> 26.9
A45: diff | B45: =B41-B44 -> 7.986885125 | C45: =C41-C44 -> -19.37225991 | D45: 28.19925566 | E45: 0.5567656226 | F45: -27.28631135 | G45: -0.1530123105 | H45: 8.085868862 | I45: 5.022895611 | J45: -4.22576025 | K45: 5.809560503

Sheet Matrice encodage
A1: IMPORTATION | B1: Samedi | C1: Dimanche | D1: Lundi | E1: Mardi | F1: Mercredi | G1: Jeudi | H1: Vendredi | I1: MOYENNE
A2: khonsou | B2: =VLOOKUP(A2,samedi!A:B,2,FALSE) -> 2241820445 | C2: =VLOOKUP(A2,dimanche!A:B,2,FALSE) -> 2241820445 | D2: =VLOOKUP(A2,lundi!A:B,2,FALSE) -> 2241766155 | E2: =VLOOKUP(A2,mardi!A:B,2,FALSE) -> 2368497217 | F2: =VLOOKUP(A2,mercredi!A:B,2,FALSE) -> 2366640927 | G2: =VLOOKUP(A2,jeudi!A:B,2,FALSE) -> 2378065321 | H2: =VLOOKUP(A2,vendredi!A:B,2,FALSE) -> 2296405921 | I2: =AVERAGE(D2,E2,F2,G2,H2,B2,C2) -> 2305002347
A3: tharsilla | B3: =VLOOKUP(A3,samedi!A:B,2,FALSE) -> 2123998443 | C3: =VLOOKUP(A3,dimanche!A:B,2,FALSE) -> 2123998443 | D3: =VLOOKUP(A3,lundi!A:B,2,FALSE) -> 2123998443 | E3: =VLOOKUP(A3,mardi!A:B,2,FALSE) -> 2123998443 | F3: =VLOOKUP(A3,mercredi!A:B,2,FALSE) -> 2123998443 | G3: =VLOOKUP(A3,jeudi!A:B,2,FALSE) -> 2123998443 | H3: =VLOOKUP(A3,vendredi!A:B,2,FALSE) -> 2123998443 | I3: =AVERAGE(D3,E3,F3,G3,H3,B3,C3) -> 2123998443
A4: chachadu44 | B4: =VLOOKUP(A4,samedi!A:B,2,FALSE) -> 1535136287 | C4: =VLOOKUP(A4,dimanche!A:B,2,FALSE) -> 1535136287 | D4: =VLOOKUP(A4,lundi!A:B,2,FALSE) -> 1535136287 | E4: =VLOOKUP(A4,mardi!A:B,2,FALSE) -> 1535136287 | F4: =VLOOKUP(A4,mercredi!A:B,2,FALSE) -> 1535136287 | G4: =VLOOKUP(A4,jeudi!A:B,2,FALSE) -> 1535136287 | H4: =VLOOKUP(A4,vendredi!A:B,2,FALSE) -> 1535136287 | I4: 1535136287
A5: chepa | B5: =VLOOKUP(A5,samedi!A:B,2,FALSE) -> 1496016592 | C5: =VLOOKUP(A5,dimanche!A:B,2,FALSE) -> 1496016592 | D5: =VLOOKUP(A5,lundi!A:B,2,FALSE) -> 1496016592 | E5: =VLOOKUP(A5,mardi!A:B,2,FALSE) -> 1499805343 | F5: =VLOOKUP(A5,mercredi!A:B,2,FALSE) -> 1426130474 | G5: =VLOOKUP(A5,jeudi!A:B,2,FALSE) -> 1406300213 | H5: =VLOOKUP(A5,vendredi!A:B,2,FALSE) -> 1413555715 | I5: 1461977360
A6: kiwi445 | B6: =VLOOKUP(A6,samedi!A:B,2,FALSE) -> 721431277 | C6: =VLOOKUP(A6,dimanche!A:B,2,FALSE) -> 721431277 | D6: =VLOOKUP(A6,lundi!A:B,2,FALSE) -> 606482162 | E6: =VLOOKUP(A6,mardi!A:B,2,FALSE) -> 606482162 | F6: =VLOOKUP(A6,mercredi!A:B,2,FALSE) -> 499773021 | G6: =VLOOKUP(A6,jeudi!A:B,2,FALSE) -> 484422052 | H6: =VLOOKUP(A6,vendredi!A:B,2,FALSE) -> 484422052 | I6: 589206286.1
A7: terminator3 | B7: =VLOOKUP(A7,samedi!A:B,2,FALSE) -> 313517929 | C7: =VLOOKUP(A7,dimanche!A:B,2,FALSE) -> 313517929 | D7: =VLOOKUP(A7,lundi!A:B,2,FALSE) -> 386422246 | E7: =VLOOKUP(A7,mardi!A:B,2,FALSE) -> 292309324 | F7: =VLOOKUP(A7,mercredi!A:B,2,FALSE) -> 299968629 | G7: =VLOOKUP(A7,jeudi!A:B,2,FALSE) -> 339326374 | H7: =VLOOKUP(A7,vendredi!A:B,2,FALSE) -> 339326374 | I7: 326341257.9
A8: Aym35 | B8: =VLOOKUP(A8,samedi!A:B,2,FALSE) -> 124104111 | C8: =VLOOKUP(A8,dimanche!A:B,2,FALSE) -> 124104111 | D8: =VLOOKUP(A8,lundi!A:B,2,FALSE) -> 145492628 | E8: =VLOOKUP(A8,mardi!A:B,2,FALSE) -> 128675213 | F8: =VLOOKUP(A8,mercredi!A:B,2,FALSE) -> 120362051 | G8: =VLOOKUP(A8,jeudi!A:B,2,FALSE) -> 167726873 | H8: =VLOOKUP(A8,vendredi!A:B,2,FALSE) -> 167726873 | I8: 139741694.3
A9: ygrek | B9: =VLOOKUP(A9,samedi!A:B,2,FALSE) -> 63349825 | C9: =VLOOKUP(A9,dimanche!A:B,2,FALSE) -> 63349825 | D9: =VLOOKUP(A9,lundi!A:B,2,FALSE) -> 75203758 | E9: =VLOOKUP(A9,mardi!A:B,2,FALSE) -> 120374182 | F9: =VLOOKUP(A9,mercredi!A:B,2,FALSE) -> 54746388 | G9: =VLOOKUP(A9,jeudi!A:B,2,FALSE) -> 70249467 | H9: =VLOOKUP(A9,vendredi!A:B,2,FALSE) -> 87465392 | I9: 76391262.43
A10: havok1 | B10: =VLOOKUP(A10,samedi!A:B,2,FALSE) -> 53999038 | C10: =VLOOKUP(A10,dimanche!A:B,2,FALSE) -> 53999038 | D10: =VLOOKUP(A10,lundi!A:B,2,FALSE) -> 30675967 | E10: =VLOOKUP(A10,mardi!A:B,2,FALSE) -> 20956892 | F10: =VLOOKUP(A10,mercredi!A:B,2,FALSE) -> 20956892 | G10: =VLOOKUP(A10,jeudi!A:B,2,FALSE) -> 20956892 | H10: =VLOOKUP(A10,vendredi!A:B,2,FALSE) -> 20956892 | I10: 31785944.43
A11: Maromi | B11: =VLOOKUP(A11,samedi!A:B,2,FALSE) -> 48828665 | C11: =VLOOKUP(A11,dimanche!A:B,2,FALSE) -> 48828665 | D11: =VLOOKUP(A11,lundi!A:B,2,FALSE) -> 26970712 | E11: =VLOOKUP(A11,mardi!A:B,2,FALSE) -> 40044164 | F11: =VLOOKUP(A11,mercredi!A:B,2,FALSE) -> 51166071 | G11: =VLOOKUP(A11,jeudi!A:B,2,FALSE) -> 51166071 | H11: =VLOOKUP(A11,vendredi!A:B,2,FALSE) -> 51166071 | I11: 45452917
A12: orev | B12: =VLOOKUP(A12,samedi!A:B,2,FALSE) -> 42204618 | C12: =VLOOKUP(A12,dimanche!A:B,2,FALSE) -> 42204618 | D12: =VLOOKUP(A12,lundi!A:B,2,FALSE) -> 17834002 | E12: =VLOOKUP(A12,mardi!A:B,2,FALSE) -> 10514279 | F12: =VLOOKUP(A12,mercredi!A:B,2,FALSE) -> 11683360 | G12: =VLOOKUP(A12,jeudi!A:B,2,FALSE) -> 25181469 | H12: =VLOOKUP(A12,vendredi!A:B,2,FALSE) -> 31558957 | I12: 25883043.29
A13: Calicelame | B13: =VLOOKUP(A13,samedi!A:B,2,FALSE) -> 31797785 | C13: =VLOOKUP(A13,dimanche!A:B,2,FALSE) -> 31797785 | D13: =VLOOKUP(A13,lundi!A:B,2,FALSE) -> 31797785 | E13: =VLOOKUP(A13,mardi!A:B,2,FALSE) -> 21445756 | F13: =VLOOKUP(A13,mercredi!A:B,2,FALSE) -> 27386607 | G13: =VLOOKUP(A13,jeudi!A:B,2,FALSE) -> 30537963 | H13: =VLOOKUP(A13,vendredi!A:B,2,FALSE) -> 30537963 | I13: 29328806.29
A14: kirle | B14: =VLOOKUP(A14,samedi!A:B,2,FALSE) -> 27715454 | C14: =VLOOKUP(A14,dimanche!A:B,2,FALSE) -> 27715454 | D14: =VLOOKUP(A14,lundi!A:B,2,FALSE) -> 27715454 | E14: =VLOOKUP(A14,mardi!A:B,2,FALSE) -> 60287573 | F14: =VLOOKUP(A14,mercredi!A:B,2,FALSE) -> 50287573 | G14: =VLOOKUP(A14,jeudi!A:B,2,FALSE) -> 50287573 | H14: =VLOOKUP(A14,vendredi!A:B,2,FALSE) -> 50287573 | I14: 42042379.14
A15: shuo | B15: =VLOOKUP(A15,samedi!A:B,2,FALSE) -> 22194850 | C15: =VLOOKUP(A15,dimanche!A:B,2,FALSE) -> 22194850 | D15: =VLOOKUP(A15,lundi!A:B,2,FALSE) -> 22194850 | E15: =VLOOKUP(A15,mardi!A:B,2,FALSE) -> 31353251 | F15: =VLOOKUP(A15,mercredi!A:B,2,FALSE) -> 20231344 | G15: =VLOOKUP(A15,jeudi!A:B,2,FALSE) -> 20231344 | H15: =VLOOKUP(A15,vendredi!A:B,2,FALSE) -> 20231344 | I15: 22661690.43
A16: Micktram | B16: =VLOOKUP(A16,samedi!A:B,2,FALSE) -> 20628092 | C16: =VLOOKUP(A16,dimanche!A:B,2,FALSE) -> 20628092 | D16: =VLOOKUP(A16,lundi!A:B,2,FALSE) -> 14666640 | E16: =VLOOKUP(A16,mardi!A:B,2,FALSE) -> 13343541 | F16: =VLOOKUP(A16,mercredi!A:B,2,FALSE) -> 8084785 | G16: =VLOOKUP(A16,jeudi!A:B,2,FALSE) -> 13947813 | H16: =VLOOKUP(A16,vendredi!A:B,2,FALSE) -> 16936785 | I16: 15462249.71
A17: Darkspread | B17: =VLOOKUP(A17,samedi!A:B,2,FALSE) -> 18777605 | C17: =VLOOKUP(A17,dimanche!A:B,2,FALSE) -> 18777605 | D17: =VLOOKUP(A17,lundi!A:B,2,FALSE) -> 27634968 | E17: =VLOOKUP(A17,mardi!A:B,2,FALSE) -> 14561516 | F17: =VLOOKUP(A17,mercredi!A:B,2,FALSE) -> 14561516 | G17: =VLOOKUP(A17,jeudi!A:B,2,FALSE) -> 9319371 | H17: =VLOOKUP(A17,vendredi!A:B,2,FALSE) -> 9319371 | I17: 16135993.14
A18: hbing | B18: =VLOOKUP(A18,samedi!A:B,2,FALSE) -> 17423704 | C18: =VLOOKUP(A18,dimanche!A:B,2,FALSE) -> 17423704 | D18: =VLOOKUP(A18,lundi!A:B,2,FALSE) -> 33246541 | E18: =VLOOKUP(A18,mardi!A:B,2,FALSE) -> 17022230 | F18: =VLOOKUP(A18,mercredi!A:B,2,FALSE) -> 54745470 | G18: =VLOOKUP(A18,jeudi!A:B,2,FALSE) -> 72272433 | H18: =VLOOKUP(A18,vendredi!A:B,2,FALSE) -> 68823701 | I18: 40136826.14
A19: Ithaque | B19: =VLOOKUP(A19,samedi!A:B,2,FALSE) -> 12629636 | C19: =VLOOKUP(A19,dimanche!A:B,2,FALSE) -> 12629636 | D19: =VLOOKUP(A19,lundi!A:B,2,FALSE) -> 16484668 | E19: =VLOOKUP(A19,mardi!A:B,2,FALSE) -> 10373867 | F19: =VLOOKUP(A19,mercredi!A:B,2,FALSE) -> 15260745 | G19: =VLOOKUP(A19,jeudi!A:B,2,FALSE) -> 15116882 | H19: =VLOOKUP(A19,vendredi!A:B,2,FALSE) -> 12093506 | I19: 13512705.71
A20: Frite | B20: =VLOOKUP(A20,samedi!A:B,2,FALSE) -> 11746472 | C20: =VLOOKUP(A20,dimanche!A:B,2,FALSE) -> 11746472 | D20: =VLOOKUP(A20,lundi!A:B,2,FALSE) -> 10492728 | E20: =VLOOKUP(A20,mardi!A:B,2,FALSE) -> 8859380 | F20: =VLOOKUP(A20,mercredi!A:B,2,FALSE) -> 7383133 | G20: =VLOOKUP(A20,jeudi!A:B,2,FALSE) -> 16770561 | H20: =VLOOKUP(A20,vendredi!A:B,2,FALSE) -> 13416449 | I20: 11487885
A21: Blackeagle | B21: =VLOOKUP(A21,samedi!A:B,2,FALSE) -> 10384350 | C21: =VLOOKUP(A21,dimanche!A:B,2,FALSE) -> 10384350 | D21: =VLOOKUP(A21,lundi!A:B,2,FALSE) -> 3982205 | E21: =VLOOKUP(A21,mardi!A:B,2,FALSE) -> 2548612 | F21: =VLOOKUP(A21,mercredi!A:B,2,FALSE) -> 2548612 | G21: =VLOOKUP(A21,jeudi!A:B,2,FALSE) -> 2038890 | H21: =VLOOKUP(A21,vendredi!A:B,2,FALSE) -> 2038890 | I21: 4846558.429
A22: Ashday | B22: =VLOOKUP(A22,samedi!A:B,2,FALSE) -> 7666418 | C22: =VLOOKUP(A22,dimanche!A:B,2,FALSE) -> 7666418 | D22: =VLOOKUP(A22,lundi!A:B,2,FALSE) -> 4333324 | E22: =VLOOKUP(A22,mardi!A:B,2,FALSE) -> 4184902 | F22: =VLOOKUP(A22,mercredi!A:B,2,FALSE) -> 3347922 | G22: =VLOOKUP(A22,jeudi!A:B,2,FALSE) -> 24021441 | H22: =VLOOKUP(A22,vendredi!A:B,2,FALSE) -> 39065138 | I22: 12897937.57
A23: majokajupo | B23: =VLOOKUP(A23,samedi!A:B,2,FALSE) -> 6322008 | C23: =VLOOKUP(A23,dimanche!A:B,2,FALSE) -> 6322008 | D23: =VLOOKUP(A23,lundi!A:B,2,FALSE) -> 6494003 | E23: =VLOOKUP(A23,mardi!A:B,2,FALSE) -> 3322719 | F23: =VLOOKUP(A23,mercredi!A:B,2,FALSE) -> 2445522 | G23: =VLOOKUP(A23,jeudi!A:B,2,FALSE) -> 3370258 | H23: =VLOOKUP(A23,vendredi!A:B,2,FALSE) -> 5152478 | I23: 4775570.857
A24: houdihadu59 | B24: =VLOOKUP(A24,samedi!A:B,2,FALSE) -> 5891342 | C24: =VLOOKUP(A24,dimanche!A:B,2,FALSE) -> 5891342 | D24: =VLOOKUP(A24,lundi!A:B,2,FALSE) -> 8633380 | E24: =VLOOKUP(A24,mardi!A:B,2,FALSE) -> 5055189 | F24: =VLOOKUP(A24,mercredi!A:B,2,FALSE) -> 3824135 | G24: =VLOOKUP(A24,jeudi!A:B,2,FALSE) -> 5563928 | H24: =VLOOKUP(A24,vendredi!A:B,2,FALSE) -> 6237979 | I24: 5871042.143
A25: filou690 | B25: =VLOOKUP(A25,samedi!A:B,2,FALSE) -> 5696493 | C25: =VLOOKUP(A25,dimanche!A:B,2,FALSE) -> 5696493 | D25: =VLOOKUP(A25,lundi!A:B,2,FALSE) -> 7323554 | E25: =VLOOKUP(A25,mardi!A:B,2,FALSE) -> 14480874 | F25: =VLOOKUP(A25,mercredi!A:B,2,FALSE) -> 17667032 | G25: =VLOOKUP(A25,jeudi!A:B,2,FALSE) -> 26280887 | H25: =VLOOKUP(A25,vendredi!A:B,2,FALSE) -> 29230678 | I25: 15196573
A26: YodaDM | B26: =VLOOKUP(A26,samedi!A:B,2,FALSE) -> 4519615 | C26: =VLOOKUP(A26,dimanche!A:B,2,FALSE) -> 4519615 | D26: =VLOOKUP(A26,lundi!A:B,2,FALSE) -> 1335876 | E26: =VLOOKUP(A26,mardi!A:B,2,FALSE) -> 2969757 | F26: =VLOOKUP(A26,mercredi!A:B,2,FALSE) -> 1868958 | G26: =VLOOKUP(A26,jeudi!A:B,2,FALSE) -> 1868958 | H26: =VLOOKUP(A26,vendredi!A:B,2,FALSE) -> 1868958 | I26: 2707391
A27: lokiii | B27: =VLOOKUP(A27,samedi!A:B,2,FALSE) -> 4274344 | C27: =VLOOKUP(A27,dimanche!A:B,2,FALSE) -> 4274344 | D27: =VLOOKUP(A27,lundi!A:B,2,FALSE) -> 7049153 | E27: =VLOOKUP(A27,mardi!A:B,2,FALSE) -> 4852199 | F27: =VLOOKUP(A27,mercredi!A:B,2,FALSE) -> 4852199 | G27: =VLOOKUP(A27,jeudi!A:B,2,FALSE) -> 4852199 | H27: =VLOOKUP(A27,vendredi!A:B,2,FALSE) -> 4852199 | I27: 5000948.143
A28: oglala | B28: =VLOOKUP(A28,samedi!A:B,2,FALSE) -> 4047321 | C28: =VLOOKUP(A28,dimanche!A:B,2,FALSE) -> 4047321 | D28: =VLOOKUP(A28,lundi!A:B,2,FALSE) -> 3361072 | E28: =VLOOKUP(A28,mardi!A:B,2,FALSE) -> 3734045 | F28: =VLOOKUP(A28,mercredi!A:B,2,FALSE) -> 7304029 | G28: =VLOOKUP(A28,jeudi!A:B,2,FALSE) -> 8178244 | H28: =VLOOKUP(A28,vendredi!A:B,2,FALSE) -> 6683758 | I28: 5336541.429
A29: lesinc | B29: =VLOOKUP(A29,samedi!A:B,2,FALSE) -> 3894819 | C29: =VLOOKUP(A29,dimanche!A:B,2,FALSE) -> 3894819 | D29: =VLOOKUP(A29,lundi!A:B,2,FALSE) -> 3636214 | E29: =VLOOKUP(A29,mardi!A:B,2,FALSE) -> 1238780 | F29: =VLOOKUP(A29,mercredi!A:B,2,FALSE) -> 991024 | G29: =VLOOKUP(A29,jeudi!A:B,2,FALSE) -> 991024 | H29: =VLOOKUP(A29,vendredi!A:B,2,FALSE) -> 1519428 | I29: 2309444
A30: gropere | B30: =VLOOKUP(A30,samedi!A:B,2,FALSE) -> 3097832 | C30: =VLOOKUP(A30,dimanche!A:B,2,FALSE) -> 3097832 | D30: =VLOOKUP(A30,lundi!A:B,2,FALSE) -> 3587150 | E30: =VLOOKUP(A30,mardi!A:B,2,FALSE) -> 2870322 | F30: =VLOOKUP(A30,mercredi!A:B,2,FALSE) -> 4282724 | G30: =VLOOKUP(A30,jeudi!A:B,2,FALSE) -> 2258036 | H30: =VLOOKUP(A30,vendredi!A:B,2,FALSE) -> 2658036 | I30: 3121704.571
A31: Tweick | B31: =VLOOKUP(A31,samedi!A:B,2,FALSE) -> 2630228 | C31: =VLOOKUP(A31,dimanche!A:B,2,FALSE) -> 2630228 | D31: =VLOOKUP(A31,lundi!A:B,2,FALSE) -> 980417 | E31: =VLOOKUP(A31,mardi!A:B,2,FALSE) -> 980417 | F31: =VLOOKUP(A31,mercredi!A:B,2,FALSE) -> 8118001 | G31: =VLOOKUP(A31,jeudi!A:B,2,FALSE) -> 1225549 | H31: =VLOOKUP(A31,vendredi!A:B,2,FALSE) -> 1225549 | I31: 2541484.143
A32: Doudou59 | B32: =VLOOKUP(A32,samedi!A:B,2,FALSE) -> 2363096 | C32: =VLOOKUP(A32,dimanche!A:B,2,FALSE) -> 2363096 | D32: =VLOOKUP(A32,lundi!A:B,2,FALSE) -> 2361456 | E32: =VLOOKUP(A32,mardi!A:B,2,FALSE) -> 1012341 | F32: =VLOOKUP(A32,mercredi!A:B,2,FALSE) -> 1012341 | G32: =VLOOKUP(A32,jeudi!A:B,2,FALSE) -> 1012341 | H32: =VLOOKUP(A32,vendredi!A:B,2,FALSE) -> 1012341 | I32: 1591001.714
A33: dolfijn | B33: =VLOOKUP(A33,samedi!A:B,2,FALSE) -> 1656365 | C33: =VLOOKUP(A33,dimanche!A:B,2,FALSE) -> 1656365 | D33: =VLOOKUP(A33,lundi!A:B,2,FALSE) -> 1060074 | E33: =VLOOKUP(A33,mardi!A:B,2,FALSE) -> 831644 | F33: =VLOOKUP(A33,mercredi!A:B,2,FALSE) -> 831644 | G33: =VLOOKUP(A33,jeudi!A:B,2,FALSE) -> 831644 | H33: =VLOOKUP(A33,vendredi!A:B,2,FALSE) -> 552522 | I33: 1060036.857
A34: Banania | B34: =VLOOKUP(A34,samedi!A:B,2,FALSE) -> 1317152 | C34: =VLOOKUP(A34,dimanche!A:B,2,FALSE) -> 1317152 | D34: =VLOOKUP(A34,lundi!A:B,2,FALSE) -> 1053722 | E34: =VLOOKUP(A34,mardi!A:B,2,FALSE) -> 842978 | F34: =VLOOKUP(A34,mercredi!A:B,2,FALSE) -> 969424 | G34: =VLOOKUP(A34,jeudi!A:B,2,FALSE) -> 969424 | H34: =VLOOKUP(A34,vendredi!A:B,2,FALSE) -> 6779216 | I34: 1892724
A35: bastien14 | B35: =VLOOKUP(A35,samedi!A:B,2,FALSE) -> 1046335 | C35: =VLOOKUP(A35,dimanche!A:B,2,FALSE) -> 1046335 | D35: =VLOOKUP(A35,lundi!A:B,2,FALSE) -> 2058588 | E35: =VLOOKUP(A35,mardi!A:B,2,FALSE) -> 1208262 | F35: =VLOOKUP(A35,mercredi!A:B,2,FALSE) -> 1338419 | G35: =VLOOKUP(A35,jeudi!A:B,2,FALSE) -> 1009052 | H35: =VLOOKUP(A35,vendredi!A:B,2,FALSE) -> 1009052 | I35: 1245149
A36: Darksnake | B36: =VLOOKUP(A36,samedi!A:B,2,FALSE) -> 947520 | C36: =VLOOKUP(A36,dimanche!A:B,2,FALSE) -> 947520 | D36: =VLOOKUP(A36,lundi!A:B,2,FALSE) -> 947520 | E36: =VLOOKUP(A36,mardi!A:B,2,FALSE) -> 1558016 | F36: =VLOOKUP(A36,mercredi!A:B,2,FALSE) -> 1246413 | G36: =VLOOKUP(A36,jeudi!A:B,2,FALSE) -> 1246413 | H36: =VLOOKUP(A36,vendredi!A:B,2,FALSE) -> 997131 | I36: 1127219
A37: eliote | B37: =VLOOKUP(A37,samedi!A:B,2,FALSE) -> 935837 | C37: =VLOOKUP(A37,dimanche!A:B,2,FALSE) -> 935837 | D37: =VLOOKUP(A37,lundi!A:B,2,FALSE) -> 935837 | E37: =VLOOKUP(A37,mardi!A:B,2,FALSE) -> 935837 | F37: =VLOOKUP(A37,mercredi!A:B,2,FALSE) -> 486699 | G37: =VLOOKUP(A37,jeudi!A:B,2,FALSE) -> 486699 | H37: =VLOOKUP(A37,vendredi!A:B,2,FALSE) -> 486699 | I37: 743349.2857
A38: WakasH | B38: =VLOOKUP(A38,samedi!A:B,2,FALSE) -> 825035 | C38: =VLOOKUP(A38,dimanche!A:B,2,FALSE) -> 825035 | D38: =VLOOKUP(A38,lundi!A:B,2,FALSE) -> 825035 | E38: =VLOOKUP(A38,mardi!A:B,2,FALSE) -> 825035 | F38: =VLOOKUP(A38,mercredi!A:B,2,FALSE) -> 825035 | G38: =VLOOKUP(A38,jeudi!A:B,2,FALSE) -> 45054332 | H38: =VLOOKUP(A38,vendredi!A:B,2,FALSE) -> 11799165 | I38: 8711238.857
A39: vipere92 | B39: =VLOOKUP(A39,samedi!A:B,2,FALSE) -> 821057 | C39: =VLOOKUP(A39,dimanche!A:B,2,FALSE) -> 821057 | D39: =VLOOKUP(A39,lundi!A:B,2,FALSE) -> 821057 | E39: =VLOOKUP(A39,mardi!A:B,2,FALSE) -> 78847248 | F39: =VLOOKUP(A39,mercredi!A:B,2,FALSE) -> 101568620 | G39: =VLOOKUP(A39,jeudi!A:B,2,FALSE) -> 6691624 | H39: =VLOOKUP(A39,vendredi!A:B,2,FALSE) -> 4736782 | I39: 27758206.43
A40: Boody | B40: =VLOOKUP(A40,samedi!A:B,2,FALSE) -> 714883 | C40: =VLOOKUP(A40,dimanche!A:B,2,FALSE) -> 714883 | D40: =VLOOKUP(A40,lundi!A:B,2,FALSE) -> 714883 | E40: =VLOOKUP(A40,mardi!A:B,2,FALSE) -> 714883 | F40: =VLOOKUP(A40,mercredi!A:B,2,FALSE) -> 39252945 | G40: =VLOOKUP(A40,jeudi!A:B,2,FALSE) -> 1664206 | H40: =VLOOKUP(A40,vendredi!A:B,2,FALSE) -> 1162777 | I40: 6419922.857
A41: nonobcd82 | B41: =VLOOKUP(A41,samedi!A:B,2,FALSE) -> 683296 | C41: =VLOOKUP(A41,dimanche!A:B,2,FALSE) -> 683296 | D41: =VLOOKUP(A41,lundi!A:B,2,FALSE) -> 683296 | E41: =VLOOKUP(A41,mardi!A:B,2,FALSE) -> 683296 | F41: =VLOOKUP(A41,mercredi!A:B,2,FALSE) -> 683296 | G41: =VLOOKUP(A41,jeudi!A:B,2,FALSE) -> 683296 | H41: =VLOOKUP(A41,vendredi!A:B,2,FALSE) -> 683296 | I41: 683296
A42: pierrhout | B42: =VLOOKUP(A42,samedi!A:B,2,FALSE) -> 620935 | C42: =VLOOKUP(A42,dimanche!A:B,2,FALSE) -> 620935 | D42: =VLOOKUP(A42,lundi!A:B,2,FALSE) -> 620935 | E42: =VLOOKUP(A42,mardi!A:B,2,FALSE) -> 620935 | F42: =VLOOKUP(A42,mercredi!A:B,2,FALSE) -> 620935 | G42: =VLOOKUP(A42,jeudi!A:B,2,FALSE) -> 620935 | H42: =VLOOKUP(A42,vendredi!A:B,2,FALSE) -> 620935 | I42: 620935
A43: trezepac | B43: =VLOOKUP(A43,samedi!A:B,2,FALSE) -> 478976 | C43: =VLOOKUP(A43,dimanche!A:B,2,FALSE) -> 478976 | D43: =VLOOKUP(A43,lundi!A:B,2,FALSE) -> 478976 | E43: =VLOOKUP(A43,mardi!A:B,2,FALSE) -> 478976 | F43: =VLOOKUP(A43,mercredi!A:B,2,FALSE) -> 352530 | G43: =VLOOKUP(A43,jeudi!A:B,2,FALSE) -> 352530 | H43: =VLOOKUP(A43,vendredi!A:B,2,FALSE) -> 352530 | I43: 424784.8571
A44: wizz59780 | B44: =VLOOKUP(A44,samedi!A:B,2,FALSE) -> 415182 | C44: =VLOOKUP(A44,dimanche!A:B,2,FALSE) -> 415182 | D44: =VLOOKUP(A44,lundi!A:B,2,FALSE) -> 415182 | E44: =VLOOKUP(A44,mardi!A:B,2,FALSE) -> 415182 | F44: =VLOOKUP(A44,mercredi!A:B,2,FALSE) -> 415182 | G44: =VLOOKUP(A44,jeudi!A:B,2,FALSE) -> 415182 | H44: =VLOOKUP(A44,vendredi!A:B,2,FALSE) -> 415182 | I44: 415182
A45: misaxsan | B45: =VLOOKUP(A45,samedi!A:B,2,FALSE) -> 367568 | C45: =VLOOKUP(A45,dimanche!A:B,2,FALSE) -> 367568 | D45: =VLOOKUP(A45,lundi!A:B,2,FALSE) -> 367568 | E45: =VLOOKUP(A45,mardi!A:B,2,FALSE) -> 367568 | F45: =VLOOKUP(A45,mercredi!A:B,2,FALSE) -> 367568 | G45: =VLOOKUP(A45,jeudi!A:B,2,FALSE) -> 367568 | H45: =VLOOKUP(A45,vendredi!A:B,2,FALSE) -> 367568 | I45: 367568
A46: anthony2306 | B46: =VLOOKUP(A46,samedi!A:B,2,FALSE) -> 304172 | C46: =VLOOKUP(A46,dimanche!A:B,2,FALSE) -> 304172 | D46: =VLOOKUP(A46,lundi!A:B,2,FALSE) -> 304172 | E46: =VLOOKUP(A46,mardi!A:B,2,FALSE) -> 304172 | F46: =VLOOKUP(A46,mercredi!A:B,2,FALSE) -> 304172 | G46: =VLOOKUP(A46,jeudi!A:B,2,FALSE) -> 304172 | H46: =VLOOKUP(A46,vendredi!A:B,2,FALSE) -> 304172 | I46: 304172
A47: whiteforest | B47: =VLOOKUP(A47,samedi!A:B,2,FALSE) -> 268468 | C47: =VLOOKUP(A47,dimanche!A:B,2,FALSE) -> 268468 | D47: =VLOOKUP(A47,lundi!A:B,2,FALSE) -> 268468 | E47: =VLOOKUP(A47,mardi!A:B,2,FALSE) -> 268468 | F47: =VLOOKUP(A47,mercredi!A:B,2,FALSE) -> 268468 | G47: =VLOOKUP(A47,jeudi!A:B,2,FALSE) -> 268468 | H47: =VLOOKUP(A47,vendredi!A:B,2,FALSE) -> 268468 | I47: 268468
A48: elladan | B48: =VLOOKUP(A48,samedi!A:B,2,FALSE) -> 211067 | C48: =VLOOKUP(A48,dimanche!A:B,2,FALSE) -> 211067 | D48: =VLOOKUP(A48,lundi!A:B,2,FALSE) -> 211067 | E48: =VLOOKUP(A48,mardi!A:B,2,FALSE) -> 211067 | F48: =VLOOKUP(A48,mercredi!A:B,2,FALSE) -> 211067 | G48: =VLOOKUP(A48,jeudi!A:B,2,FALSE) -> 211067 | H48: =VLOOKUP(A48,vendredi!A:B,2,FALSE) -> 211067 | I48: 211067
A50: TOTAL TDC ALLIANCE | B50: =SUM(B2:B48) -> 8999722542 | C50: =SUM(C2:C48) -> 8999722542 | D50: =SUM(D2:D48) -> 8935076770 | E50: =SUM(E2:E48) -> 9060404344 | F50: 8916508632 | G50: 8973851769 | H50: 8905657663 | I50: =SUM(I2:I48) -> 8970134895

Sheet samedi
A1: khonsou | B1: 2241820445 | D1: OK
A2: tharsilla | B2: 2123998443
A3: chachadu44 | B3: 1535136287
A4: chepa | B4: 1496016592
A5: kiwi445 | B5: 721431277
A6: terminator3 | B6: 313517929
A7: Aym35 | B7: 124104111
A8: ygrek | B8: 63349825
A9: havok1 | B9: 53999038
A10: Maromi | B10: 48828665
A11: orev | B11: 42204618
A12: Calicelame | B12: 31797785
A13: kirle | B13: 27715454
A14: shuo | B14: 22194850
A15: Micktram | B15: 20628092
A16: Darkspread | B16: 18777605
A17: hbing | B17: 17423704
A18: Ithaque | B18: 12629636
A19: Frite | B19: 11746472
A20: Blackeagle | B20: 10384350
A21: Ashday | B21: 7666418
A22: majokajupo | B22: 6322008
A23: houdihadu59 | B23: 5891342
A24: filou690 | B24: 5696493
A25: YodaDM | B25: 4519615
A26: lokiii | B26: 4274344
A27: oglala | B27: 4047321
A28: lesinc | B28: 3894819
A29: gropere | B29: 3097832
A30: Tweick | B30: 2630228
A31: Doudou59 | B31: 2363096
A32: dolfijn | B32: 1656365
A33: Banania | B33: 1317152
A34: bastien14 | B34: 1046335
A35: Darksnake | B35: 947520
A36: eliote | B36: 935837
A37: WakasH | B37: 825035
A38: vipere92 | B38: 821057
A39: Boody | B39: 714883
A40: nonobcd82 | B40: 683296
A41: pierrhout | B41: 620935
A42: trezepac | B42: 478976
A43: wizz59780 | B43: 415182
A44: misaxsan | B44: 367568
A45: anthony2306 | B45: 304172
A46: whiteforest | B46: 268468
A47: elladan | B47: 211067

Sheet dimanche
A1: khonsou | B1: 2241820445 | D1: OK
A2: tharsilla | B2: 2123998443
A3: chachadu44 | B3: 1535136287
A4: chepa | B4: 1496016592
A5: kiwi445 | B5: 721431277
A6: terminator3 | B6: 313517929
A7: Aym35 | B7: 124104111
A8: ygrek | B8: 63349825
A9: havok1 | B9: 53999038
A10: Maromi | B10: 48828665
A11: orev | B11: 42204618
A12: Calicelame | B12: 31797785
A13: kirle | B13: 27715454
A14: shuo | B14: 22194850
A15: Micktram | B15: 20628092
A16: Darkspread | B16: 18777605
A17: hbing | B17: 17423704
A18: Ithaque | B18: 12629636
A19: Frite | B19: 11746472
A20: Blackeagle | B20: 10384350
A21: Ashday | B21: 7666418
A22: majokajupo | B22: 6322008
A23: houdihadu59 | B23: 5891342
A24: filou690 | B24: 5696493
A25: YodaDM | B25: 4519615
A26: lokiii | B26: 4274344
A27: oglala | B27: 4047321
A28: lesinc | B28: 3894819
A29: gropere | B29: 3097832
A30: Tweick | B30: 2630228
A31: Doudou59 | B31: 2363096
A32: dolfijn | B32: 1656365
A33: Banania | B33: 1317152
A34: bastien14 | B34: 1046335
A35: Darksnake | B35: 947520
A36: eliote | B36: 935837
A37: WakasH | B37: 825035
A38: vipere92 | B38: 821057
A39: Boody | B39: 714883
A40: nonobcd82 | B40: 683296
A41: pierrhout | B41: 620935
A42: trezepac | B42: 478976
A43: wizz59780 | B43: 415182
A44: misaxsan | B44: 367568
A45: anthony2306 | B45: 304172
A46: whiteforest | B46: 268468
A47: elladan | B47: 211067

Sheet lundi
A1: khonsou | B1: 2241766155 | D1: OK
A2: tharsilla | B2: 2123998443
A3: chachadu44 | B3: 1535136287
A4: chepa | B4: 1496016592
A5: kiwi445 | B5: 606482162
A6: terminator3 | B6: 386422246
A7: Aym35 | B7: 145492628
A8: ygrek | B8: 75203758
A9: hbing | B9: 33246541
A10: Calicelame | B10: 31797785
A11: havok1 | B11: 30675967
A12: kirle | B12: 27715454
A13: Darkspread | B13: 27634968
A14: Maromi | B14: 26970712
A15: shuo | B15: 22194850
A16: orev | B16: 17834002
A17: Ithaque | B17: 16484668
A18: Micktram | B18: 14666640
A19: Frite | B19: 10492728
A20: houdihadu59 | B20: 8633380
A21: filou690 | B21: 7323554
A22: lokiii | B22: 7049153
A23: majokajupo | B23: 6494003
A24: Ashday | B24: 4333324
A25: Blackeagle | B25: 3982205
A26: lesinc | B26: 3636214
A27: gropere | B27: 3587150
A28: oglala | B28: 3361072
A29: Doudou59 | B29: 2361456
A30: bastien14 | B30: 2058588
A31: YodaDM | B31: 1335876
A32: dolfijn | B32: 1060074
A33: Banania | B33: 1053722
A34: Tweick | B34: 980417
A35: Darksnake | B35: 947520
A36: eliote | B36: 935837
A37: WakasH | B37: 825035
A38: vipere92 | B38: 821057
A39: Boody | B39: 714883
A40: nonobcd82 | B40: 683296
A41: pierrhout | B41: 620935
A42: trezepac | B42: 478976
A43: wizz59780 | B43: 415182
A44: misaxsan | B44: 367568
A45: anthony2306 | B45: 304172
A46: whiteforest | B46: 268468
A47: elladan | B47: 211067

Sheet mardi
A1: khonsou | B1: 2368497217 | D1: ok
A2: tharsilla | B2: 2123998443
A3: chachadu44 | B3: 1535136287
A4: chepa | B4: 1499805343
A5: kiwi445 | B5: 606482162
A6: terminator3 | B6: 292309324
A7: Aym35 | B7: 128675213
A8: ygrek | B8: 120374182
A9: vipere92 | B9: 78847248
A10: kirle | B10: 60287573
A11: Maromi | B11: 40044164
A12: shuo | B12: 31353251
A13: Calicelame | B13: 21445756
A14: havok1 | B14: 20956892
A15: hbing | B15: 17022230
A16: Darkspread | B16: 14561516
A17: filou690 | B17: 14480874
A18: Micktram | B18: 13343541
A19: orev | B19: 10514279
A20: Ithaque | B20: 10373867
A21: Frite | B21: 8859380
A22: houdihadu59 | B22: 5055189
A23: lokiii | B23: 4852199
A24: Ashday | B24: 4184902
A25: oglala | B25: 3734045
A26: majokajupo | B26: 3322719
A27: YodaDM | B27: 2969757
A28: gropere | B28: 2870322
A29: Blackeagle | B29: 2548612
A30: Darksnake | B30: 1558016
A31: lesinc | B31: 1238780
A32: bastien14 | B32: 1208262
A33: Doudou59 | B33: 1012341
A34: Tweick | B34: 980417
A35: eliote | B35: 935837
A36: Banania | B36: 842978
A37: dolfijn | B37: 831644
A38: WakasH | B38: 825035
A39: Boody | B39: 714883
A40: nonobcd82 | B40: 683296
A41: pierrhout | B41: 620935
A42: trezepac | B42: 478976
A43: wizz59780 | B43: 415182
A44: misaxsan | B44: 367568
A45: anthony2306 | B45: 304172
A46: whiteforest | B46: 268468
A47: elladan | B47: 211067

Sheet mercredi
A1: khonsou | B1: 2366640927 | D1: ok
A2: tharsilla | B2: 2123998443
A3: chachadu44 | B3: 1535136287
A4: chepa | B4: 1426130474
A5: kiwi445 | B5: 499773021
A6: terminator3 | B6: 299968629
A7: Aym35 | B7: 120362051
A8: vipere92 | B8: 101568620
A9: ygrek | B9: 54746388
A10: hbing | B10: 54745470
A11: Maromi | B11: 51166071
A12: kirle | B12: 50287573
A13: Boody | B13: 39252945
A14: Calicelame | B14: 27386607
A15: havok1 | B15: 20956892
A16: shuo | B16: 20231344
A17: filou690 | B17: 17667032
A18: Ithaque | B18: 15260745
A19: Darkspread | B19: 14561516
A20: orev | B20: 11683360
A21: Tweick | B21: 8118001
A22: Micktram | B22: 8084785
A23: Frite | B23: 7383133
A24: oglala | B24: 7304029
A25: lokiii | B25: 4852199
A26: gropere | B26: 4282724
A27: houdihadu59 | B27: 3824135
A28: Ashday | B28: 3347922
A29: Blackeagle | B29: 2548612
A30: majokajupo | B30: 2445522
A31: YodaDM | B31: 1868958
A32: bastien14 | B32: 1338419
A33: Darksnake | B33: 1246413
A34: Doudou59 | B34: 1012341
A35: lesinc | B35: 991024
A36: Banania | B36: 969424
A37: dolfijn | B37: 831644
A38: WakasH | B38: 825035
A39: nonobcd82 | B39: 683296
A40: pierrhout | B40: 620935
A41: eliote | B41: 486699
A42: wizz59780 | B42: 415182
A43: misaxsan | B43: 367568
A44: trezepac | B44: 352530
A45: anthony2306 | B45: 304172
A46: whiteforest | B46: 268468
A47: elladan | B47: 211067

Sheet jeudi
A1: khonsou | B1: 2378065321 | D1: ok
A2: tharsilla | B2: 2123998443
A3: chachadu44 | B3: 1535136287
A4: chepa | B4: 1406300213
A5: kiwi445 | B5: 484422052
A6: terminator3 | B6: 339326374
A7: Aym35 | B7: 167726873
A8: hbing | B8: 72272433
A9: ygrek | B9: 70249467
A10: Maromi | B10: 51166071
A11: kirle | B11: 50287573
A12: WakasH | B12: 45054332
A13: Calicelame | B13: 30537963
A14: filou690 | B14: 26280887
A15: orev | B15: 25181469
A16: Ashday | B16: 24021441
A17: havok1 | B17: 20956892
A18: shuo | B18: 20231344
A19: Frite | B19: 16770561
A20: Ithaque | B20: 15116882
A21: Micktram | B21: 13947813
A22: Darkspread | B22: 9319371
A23: oglala | B23: 8178244
A24: vipere92 | B24: 6691624
A25: houdihadu59 | B25: 5563928
A26: lokiii | B26: 4852199
A27: majokajupo | B27: 3370258
A28: gropere | B28: 2258036
A29: Blackeagle | B29: 2038890
A30: YodaDM | B30: 1868958
A31: Boody | B31: 1664206
A32: Darksnake | B32: 1246413
A33: Tweick | B33: 1225549
A34: Doudou59 | B34: 1012341
A35: bastien14 | B35: 1009052
A36: lesinc | B36: 991024
A37: Banania | B37: 969424
A38: dolfijn | B38: 831644
A39: nonobcd82 | B39: 683296
A40: pierrhout | B40: 620935
A41: eliote | B41: 486699
A42: wizz59780 | B42: 415182
A43: misaxsan | B43: 367568
A44: trezepac | B44: 352530
A45: anthony2306 | B45: 304172
A46: whiteforest | B46: 268468
A47: elladan | B47: 211067

Sheet vendredi
A1: khonsou | B1: 2296405921
A2: tharsilla | B2: 2123998443
A3: chachadu44 | B3: 1535136287
A4: chepa | B4: 1413555715
A5: kiwi445 | B5: 484422052
A6: terminator3 | B6: 339326374
A7: Aym35 | B7: 167726873
A8: ygrek | B8: 87465392
A9: hbing | B9: 68823701
A10: Maromi | B10: 51166071
A11: kirle | B11: 50287573
A12: Ashday | B12: 39065138
A13: orev | B13: 31558957
A14: Calicelame | B14: 30537963
A15: filou690 | B15: 29230678
A16: havok1 | B16: 20956892
A17: shuo | B17: 20231344
A18: Micktram | B18: 16936785
A19: Frite | B19: 13416449
A20: Ithaque | B20: 12093506
A21: WakasH | B21: 11799165
A22: Darkspread | B22: 9319371
A23: Banania | B23: 6779216
A24: oglala | B24: 6683758
A25: houdihadu59 | B25: 6237979
A26: majokajupo | B26: 5152478
A27: lokiii | B27: 4852199
A28: vipere92 | B28: 4736782
A29: gropere | B29: 2658036
A30: Blackeagle | B30: 2038890
A31: YodaDM | B31: 1868958
A32: lesinc | B32: 1519428
A33: Tweick | B33: 1225549
A34: Boody | B34: 1162777
A35: Doudou59 | B35: 1012341
A36: bastien14 | B36: 1009052
A37: Darksnake | B37: 997131
A38: nonobcd82 | B38: 683296
A39: pierrhout | B39: 620935
A40: dolfijn | B40: 552522
A41: eliote | B41: 486699
A42: wizz59780 | B42: 415182
A43: misaxsan | B43: 367568
A44: trezepac | B44: 352530
A45: anthony2306 | B45: 304172
A46: whiteforest | B46: 268468
A47: elladan | B47: 211067

Sheet TDP
A1: trezepac | B1: 0.0038
A2: tharsilla | B2: 0.0051
A3: chepa | B3: 0.006
A4: khonsou | B4: 0.0051
A5: chachadu44 | B5: 0.0086
A6: kiwi445 | B6: 0.0106
A7: kirle | B7: 0.0118
A8: hbing | B8: 0.02
A9: orev | B9: 0.0118
A10: boody | B10: 0.004
A11: whiteforest | B11: 0.0247
A12: darkspread | B12: 0.0106
A13: ithaque | B13: 0.0162
A14: ashday | B14: 0.0247
A15: havok1 | B15: 0.0086
A16: lokiii | B16: 0.0274
A17: maromi | B17: 0.0118
A18: oglala | B18: 0.0131
A19: gropere | B19: 0.005
A20: houdihadu59 | B20: 0.005
A21: filou690 | B21: 0.02
A22: blackeagle | B22: 0.0146
A23: Ygrek | B23: 0.0077
A24: Frite | B24: 0.0305
A25: misaxsan | B25: 0.0464
A26: eliote | B26: 0.0222
A27: YodaDM | B27: 0.0096
A28: Aym35 | B28: 0.0146
A29: doudou59 | B29: 0.0162
A30: Calicelame | B30: 0.0021
A31: Micktram | B31: 0.0021
A32: pierrhout | B32: 0.0274
A33: anthony2306 | B33: 0.01
A34: nonobcd82 | B34: 0.0247
A35: wizz59780 | B35: 0.0247
A36: Wakash | B36: 0.0077
A37: lesinc | B37: 0.0086
A38: dolfijn | B38: 0.007
A39: Tweick | B39: 0.0051
A40: vipere92 | B40: 0.007
A41: majokajupo | B41: 0.0106
A42: Banania | B42: 0.0222
A43: Darksnake | B43: 0.0274
A44: shuo | B44: 0.0146
A45: terminator3 | B45: 0.0106
A46: elladan | B46: 0.01
A47: bastien14 | B47: 0.01
A48: TOTAUX | B48: =SUM(B1:B47) -> 0.6475
A49: nb membres | B49: 46
A50: tdp moyen | B50: =B48/B49 -> 0.01407608696

Sheet Importation
A1: khonsou | B1: 2596985489
A2: tharsilla | B2: 2399203488
A3: chachadu44 | B3: 1846705716
A4: chepa | B4: 1222393063
A5: trezepac | B5: 809059529
A6: alx02 | B6: 641180757
A7: aditi | B7: 629482574
A8: terminator3 | B8: 527026406
A9: kiwi445 | B9: 234957796
A10: Aym35 | B10: 96827039
A11: Maromi | B11: 81005854
A12: WakasH | B12: 51749468
A13: bastien14 | B13: 37327967
A14: Ashday | B14: 31930430
A15: Darkspread | B15: 25762387
A16: havok1 | B16: 24314347
A17: Micktram | B17: 20561468
A18: lesinc | B18: 18223420
A19: Boody | B19: 15081818
A20: majokajupo | B20: 14744173
A21: hbing | B21: 14393366
A22: hiha | B22: 10790912
A23: Tweick | B23: 8346586
A24: filou690 | B24: 8268664
A25: Doudou59 | B25: 4506835
A26: Blackeagle | B26: 4111416
A27: houdihadu59 | B27: 3988867
A28: guigui9256 | B28: 3951855
A29: Calicelame | B29: 3252019
A30: orev | B30: 2460045
A31: YodaDM | B31: 1461070
A32: shuo | B32: 1042916
A33: oglala | B33: 1036982
A34: Ithaque | B34: 852699
A35: Banania | B35: 827520
A36: Frite | B36: 811336
A37: Darksnake | B37: 756296
A38: bibil | B38: 720505
A39: pierrhout | B39: 648495
A40: kirle | B40: 628454
A41: vipere92 | B41: 474645
A42: eliote | B42: 339360
A43: misaxsan | B43: 307568
A44: anthony2306 | B44: 304172
A45: whiteforest | B45: 268468
A46: elladan | B46: 211067
